bitfinex/quotes_SOLUSD_20241021
["timestamp","ask_amount","ask_price","bid_price","bid_amount"]
[1729527017846,15.8653,165.03,164.89,20.0]
[1729527018145,6.061,164.99,164.89,20.0]
[1729527018315,23.776884,164.98,164.89,20.0]
[1729527018515,30.0,164.9,164.89,20.0]
[1729527020544,29.94080776,164.9,164.89,20.0]
[1729527022036,23.776884,164.98,164.89,20.0]
[1729527023631,15.6653,165.03,164.89,20.0]
[1729527023943,6.3994,165.05,164.93,20.0]
[1729527024123,15.9042,165.07,164.94,23.776884]
[1729527024321,15.9042,165.07,164.95,20.0]
[1729527024846,6.0588,165.05,164.93,20.0]
[1729527025049,15.9042,165.07,164.93,20.0]
[1729527025348,6.0593,165.04,164.93,20.0]
[1729527026050,6.0596,165.03,164.93,20.0]
[1729527026241,23.776884,165.02,164.93,20.0]
[1729527027626,23.71769176,165.02,164.93,20.0]
[1729527029845,29.77779176,165.02,164.92,16.4048]
[1729527030040,30.0,164.95,164.93,20.0]
[1729527030461,29.77779176,165.02,164.93,20.0]
[1729527031336,23.71769176,165.02,164.93,20.0]
[1729527031541,23.776884,165.0,164.89,20.0]
[1729527032439,30.0,164.93,164.89,20.0]
[1729527035270,30.0,164.93,164.88,21.3723]
[1729527036658,30.0,164.93,164.89,20.0]
[1729527038264,30.0,164.93,164.88,15.031]
[1729527039480,30.0,164.93,164.85,20.614464]
[1729527041869,30.0,164.92,164.85,20.614464]
[1729527043375,30.0,164.92,164.87,20.0]
[1729527049072,15.061,165.0,164.87,20.0]
[1729527049276,23.776884,164.99,164.87,20.0]
[1729527049478,15.061,165.0,164.88,23.776884]
[1729527049650,15.061,165.0,164.89,20.0]
[1729527052757,15.061,165.0,164.91,20.0]
[1729527054156,15.061,165.0,164.85,0.714464]
[1729527054157,15.061,165.0,164.89,3.15775263]
[1729527054360,30.0,164.92,164.86,23.776884]
[1729527054678,30.0,164.92,164.85,20.614464]
[1729527054679,15.061,165.0,164.89,20.0]
[1729527056863,15.061,165.0,164.85,0.614464]
[1729527056864,23.776884,164.99,164.86,23.776884]
[1729527057063,29.837784,164.99,164.85,0.614464]
[1729527057470,23.776884,164.99,164.85,0.614464]
[1729527058160,23.776884,164.99,164.86,23.776884]
[1729527058355,23.776884,164.99,164.87,20.0]
[1729527059288,29.837784,164.99,164.87,20.0]
[1729527059456,29.837784,164.99,164.85,20.614464]
[1729527060185,23.776884,164.99,164.87,20.0]
[1729527062680,23.776884,164.97,164.85,20.614464]
[1729527063395,23.776884,164.98,164.85,20.614464]
[1729527064989,23.776884,164.99,164.87,20.0]
[1729527065371,15.061,165.0,164.88,23.776884]
[1729527065577,15.061,165.0,164.89,20.0]
[1729527066174,14.861,165.0,164.89,20.0]
[1729527068264,14.861,165.0,164.91,20.0]
[1729527068473,6.6185,165.02,164.91,35.5082]
[1729527068695,6.6185,165.02,164.91,41.8021]
[1729527068988,6.6185,165.02,164.93,20.0]
[1729527069199,6.0579,165.08,164.93,20.0]
[1729527069484,6.058,165.07,164.93,20.0]
[1729527069684,6.0577,165.08,164.93,20.0]
[1729527070477,23.776884,165.07,164.93,20.0]
[1729527071484,29.834784,165.08,164.93,20.0]
[1729527072068,21.8526,165.09,164.95,20.0]
[1729527073471,23.776884,165.06,164.92,20.0]
[1729527073896,23.776884,165.04,164.92,20.0]
[1729527074082,15.4401,165.03,164.92,20.0]
[1729527080477,23.776884,165.02,164.92,20.0]
[1729527086596,23.776884,165.02,164.89,23.14761888]
[1729527087401,16.5837,164.99,164.88,6.33039783]
[1729527087589,30.0,164.95,164.85,0.614464]
[1729527090504,23.776884,164.94,164.85,0.614464]
[1729527090686,30.0,164.93,164.85,0.614464]
[1729527091086,16.3798,164.92,164.85,0.614464]
[1729527092201,30.0,164.91,164.85,0.614464]
[1729527094691,6.1535,164.89,164.85,0.614464]
[1729527094891,53.776884,164.88,164.85,0.614464]
[1729527095103,23.776884,164.86,164.85,0.614464]
[1729527096797,53.776884,164.86,164.85,0.614464]
[1729527097801,59.842584,164.86,164.85,0.614464]
[1729527099416,59.842584,164.86,164.72,16.2743]
[1729527099417,23.776884,164.83,164.72,16.2743]
[1729527100299,29.844084,164.82,164.72,16.2743]
[1729527100503,23.776884,164.79,164.72,16.2743]
[1729527100986,15.6823,164.78,164.69,0.614464]
[1729527101184,23.776884,164.77,164.69,0.614464]
[1729527101611,30.0,164.75,164.69,0.614464]
[1729527112704,23.776884,164.74,164.69,0.614464]
[1729527113020,30.0,164.73,164.69,0.614464]
[1729527116206,23.776884,164.72,164.69,0.614464]
[1729527116511,30.0,164.7,164.69,0.614464]
[1729527126412,15.6823,164.78,164.69,0.614464]
[1729527126819,6.2093,164.8,164.69,17.141964]
[1729527127021,6.2093,164.8,164.7,20.0]
[1729527127318,16.0369,164.82,164.7,20.0]
[1729527129021,6.2093,164.84,164.72,20.0]
[1729527129913,6.2093,164.84,164.7,20.0]
[1729527130116,6.0671,164.83,164.7,20.0]
[1729527130820,23.776884,164.82,164.7,20.0]
[1729527131339,29.844084,164.83,164.7,20.0]
[1729527131512,23.776884,164.8,164.7,20.0]
[1729527131719,23.776884,164.78,164.7,20.0]
[1729527133548,23.776884,164.78,164.69,17.141964]
[1729527134120,23.776884,164.78,164.69,0.614464]
[1729527134323,23.776884,164.76,164.69,0.614464]
[1729527136343,23.776884,164.74,164.69,0.614464]
[1729527137459,23.776884,164.75,164.69,0.614464]
[1729527138542,29.846884,164.75,164.69,0.614464]
[1729527138919,23.776884,164.75,164.69,0.614464]
[1729527139119,29.846284,164.76,164.69,0.614464]
[1729527139344,23.776884,164.76,164.69,0.614464]
[1729527139550,6.2551,164.77,164.69,0.614464]
[1729527141545,23.776884,164.76,164.69,0.614464]
[1729527142928,29.846484,164.76,164.69,0.614464]
[1729527143831,6.0698,164.75,164.69,0.614464]
[1729527144036,29.846384,164.76,164.69,0.614464]
[1729527145623,23.776884,164.76,164.69,0.614464]
[1729527146352,23.776884,164.74,164.69,0.614464]
[1729527146527,23.776884,164.72,164.69,0.614464]
[1729527147151,29.847784,164.72,164.69,0.614464]
[1729527148958,23.776884,164.7,164.69,0.614464]
[1729527150427,53.776884,164.7,164.69,0.614464]
[1729527152149,23.776884,164.7,164.69,0.614464]
[1729527158955,53.776884,164.7,164.69,0.614464]
[1729527159760,59.848484,164.7,164.69,0.614464]
[1729527160563,74.888684,164.7,164.69,0.614464]
[1729527160863,23.776884,164.66,164.53,16.4264]
[1729527161053,23.776884,164.64,164.53,16.4264]
[1729527162150,30.0,164.65,164.54,20.0]
[1729527162351,23.776884,164.69,164.57,36.4264]
[1729527163075,15.0402,164.7,164.57,36.4264]
[1729527164264,23.776884,164.69,164.57,36.4264]
[1729527165456,29.848984,164.69,164.57,36.4264]
[1729527166073,23.776884,164.69,164.57,36.4264]
[1729527166770,27.3295,164.76,164.61,20.0]
[1729527166979,6.0699,164.75,164.61,20.0]
[1729527167969,23.776884,164.74,164.61,20.0]
[1729527168571,23.776884,164.75,164.59,20.0]
[1729527168771,6.0715,164.71,164.57,16.4264]
[1729527168974,39.151384,164.75,164.57,16.4264]
[1729527168975,6.0716,164.7,164.57,16.4264]
[1729527169275,39.151384,164.75,164.57,16.4264]
[1729527169476,23.776884,164.7,164.57,16.4264]
[1729527170259,23.776884,164.7,164.58,20.0]
[1729527174275,23.776884,164.71,164.58,20.0]
[1729527174784,23.776884,164.69,164.58,20.0]
[1729527175666,23.776884,164.7,164.58,20.0]
[1729527180078,29.848784,164.7,164.58,20.0]
[1729527187175,6.0709,164.73,164.58,20.0]
[1729527187375,15.1745,164.75,164.58,20.0]
[1729527187590,6.0712,164.71,164.58,20.0]
[1729527187778,21.4601,164.76,164.58,20.0]
[1729527187989,6.0705,164.73,164.58,20.0]
[1729527188196,6.0713,164.71,164.58,20.0]
[1729527188392,23.776884,164.7,164.58,20.0]
[1729527191978,23.776884,164.71,164.58,20.0]
[1729527195906,29.848184,164.71,164.58,20.0]
[1729527197381,23.776884,164.69,164.57,16.4264]
[1729527197576,6.0724,164.68,164.57,16.4264]
[1729527197803,23.776884,164.67,164.57,16.4264]
[1729527198398,23.776884,164.68,164.57,16.4264]
[1729527198704,23.776884,164.68,164.58,20.0]
[1729527201916,23.776884,164.69,164.58,20.0]
[1729527202405,23.776884,164.69,164.57,16.4264]
[1729527202606,23.776884,164.66,164.57,16.4264]
[1729527202998,23.776884,164.67,164.57,16.4264]
[1729527203183,22.7026,164.7,164.57,16.4264]
[1729527203386,23.776884,164.69,164.57,16.4264]
[1729527203708,23.776884,164.69,164.58,20.0]
[1729527204096,29.848884,164.69,164.58,20.0]
[1729527205387,23.776884,164.69,164.58,20.0]
[1729527206413,23.776884,164.67,164.58,20.0]
[1729527208000,29.849784,164.67,164.58,20.0]
[1729527208510,29.849784,164.67,164.57,20.0]
[1729527208710,29.849784,164.67,164.54,22.9876563]
[1729527209408,23.776884,164.67,164.54,2.9876563]
[1729527209715,23.776884,164.65,164.53,15.9154]
[1729527210611,23.776884,164.65,164.54,26.90106644]
[1729527214603,23.776884,164.65,164.54,20.0]
[1729527215905,6.0727,164.67,164.54,20.0]
[1729527216113,22.7026,164.7,164.54,20.0]
[1729527216114,23.776884,164.66,164.54,20.0]
[1729527216304,23.776884,164.67,164.54,20.0]
[1729527218891,29.849684,164.67,164.54,20.0]
[1729527221193,23.776884,164.67,164.54,20.0]
[1729527221397,23.776884,164.65,164.54,20.0]
[1729527222202,40.251384,164.65,164.54,20.0]
[1729527223513,16.4745,164.65,164.54,26.90106644]
[1729527225500,16.4745,164.65,164.56,20.0]
[1729527226195,16.4745,164.65,164.54,43.776884]
[1729527227301,23.776884,164.64,164.54,20.0]
[1729527228911,30.305284,164.64,164.54,20.0]
[1729527229521,36.379184,164.64,164.54,20.0]
[1729527229702,30.305284,164.64,164.54,20.0]
[1729527232528,16.4745,164.65,164.54,20.0]
[1729527235127,23.776884,164.64,164.54,20.0]
[1729527242151,16.4745,164.65,164.54,26.90106644]
[1729527243452,16.4745,164.65,164.54,20.0]
[1729527243945,6.1913,164.68,164.56,20.0]
[1729527244152,6.1913,164.68,164.56,26.90106644]
[1729527245232,23.776884,164.67,164.56,26.90106644]
[1729527248942,15.4173,164.71,164.6,20.0]
[1729527250938,23.776884,164.7,164.6,20.0]
[1729527252948,29.848684,164.7,164.6,20.0]
[1729527253541,29.848684,164.7,164.59,16.1021]
[1729527254643,29.848684,164.7,164.6,20.0]
[1729527254849,29.848684,164.7,164.56,20.0]
[1729527255538,17.36533143,164.7,164.56,20.0]
[1729527255733,6.0718,164.7,164.57,23.776884]
[1729527255934,15.4173,164.71,164.56,20.0]
[1729527256148,15.1133,164.66,164.55,16.1815]
[1729527256658,21.1865,164.66,164.55,16.1815]
[1729527256834,6.2277,164.65,164.54,2.98272391]
[1729527257037,6.2277,164.65,164.52,1.67032488]
[1729527257237,6.2277,164.65,164.52,21.67032488]
[1729527257750,6.2277,164.65,164.54,20.0]
[1729527258444,23.776884,164.64,164.52,0.614464]
[1729527259531,23.776884,164.64,164.52,3.62015105]
[1729527259736,23.776884,164.64,164.52,23.62015105]
[1729527260557,30.0,164.63,164.52,23.62015105]
[1729527272863,30.0,164.63,164.54,20.0]
[1729527274168,6.2277,164.65,164.54,20.0]
[1729527275362,6.2277,164.65,164.56,20.0]
[1729527275546,15.1133,164.66,164.56,20.0]
[1729527276972,6.604,164.69,164.6,20.0]
[1729527277273,15.032,164.7,164.6,20.0]
[1729527277274,15.032,164.7,164.6,26.90106644]
[1729527278170,15.032,164.7,164.6,20.0]
[1729527284590,15.032,164.7,164.6,22.9835733]
[1729527292183,15.032,164.7,164.62,20.0]
[1729527299985,6.5213,164.73,164.63,23.776884]
[1729527300194,6.5213,164.73,164.66,20.0]
[1729527300493,6.2762,164.77,164.68,20.0]
[1729527301280,16.2841,164.79,164.69,23.776884]
[1729527301499,6.4627,164.81,164.74,20.0]
[1729527301683,15.6187,164.83,164.74,20.0]
[1729527302281,15.6187,164.83,164.72,20.0]
[1729527302503,6.0682,164.8,164.69,23.776884]
[1729527302674,6.0676,164.81,164.7,20.0]
[1729527305203,23.776884,164.78,164.68,20.0]
[1729527305410,29.845684,164.78,164.66,43.776884]
[1729527305781,22.6866,164.77,164.63,16.6399]
[1729527305984,16.6174,164.77,164.63,16.6399]
[1729527307007,16.6174,164.77,164.64,23.776884]
[1729527307688,16.6174,164.77,164.65,20.0]
[1729527307892,6.0698,164.75,164.63,19.72420247]
[1729527308098,23.776884,164.76,164.63,16.6399]
[1729527308408,22.6865,164.77,164.63,16.6399]
[1729527308977,22.6865,164.77,164.64,43.776884]
[1729527310697,6.32907397,164.9,164.73,0.1]
[1729527310892,22.2107,164.91,164.81,20.0]
[1729527311303,22.2107,164.91,164.82,23.776884]
[1729527311485,22.2107,164.96,164.83,20.0]
[1729527311812,22.2107,164.96,164.85,20.0]
[1729527313428,22.2107,164.96,164.87,20.0]
[1729527313645,22.2107,165.01,164.88,23.776884]
[1729527313820,22.2107,165.01,164.89,20.0]
[1729527314313,28.2709,165.01,164.86,43.776884]
[1729527315731,23.776884,165.0,164.86,43.776884]
[1729527317113,29.837584,165.0,164.86,43.776884]
[1729527317309,23.776884,165.0,164.86,43.776884]
[1729527317737,23.776884,165.0,164.81,3.14735836]
[1729527317738,6.0613,164.99,164.82,23.776884]
[1729527317921,23.776884,164.98,164.85,20.0]
[1729527318235,23.776884,164.98,164.87,20.0]
[1729527319236,23.776884,165.0,164.87,20.0]
[1729527321525,22.2107,165.01,164.88,23.776884]
[1729527321727,22.2107,165.01,164.89,20.0]
[1729527324351,22.2107,165.01,164.89,29.36868297]
[1729527324519,22.2107,165.01,164.9,23.776884]
[1729527324719,22.2107,165.01,164.91,20.0]
[1729527324941,6.6222,165.05,164.93,20.0]
[1729527326320,6.6222,165.05,164.97,20.0]
[1729527327724,6.0893,165.09,164.97,20.0]
[1729527329332,6.0893,165.09,164.99,20.0]
[1729527335242,6.0893,165.09,164.99,35.6863]
[1729527335839,15.941164,165.1,165.01,20.0]
[1729527336047,0.614464,165.1,165.03,20.0]
[1729527336719,0.614464,165.1,165.0,20.0]
[1729527344631,39.550984,165.09,164.97,2.99675484]
[1729527344826,23.776884,165.06,164.95,16.0898]
[1729527345135,29.835284,165.06,164.92,6.163]
[1729527345343,29.835284,165.06,164.92,9.12718194]
[1729527346459,6.1637,165.08,164.93,32.46306822]
[1729527346752,6.1637,165.08,164.95,23.776884]
[1729527346933,6.1637,165.08,164.96,8.68618422]
[1729527347345,6.1637,165.08,164.99,20.0]
[1729527355446,6.1637,165.08,164.95,20.0]
[1729527355968,6.1637,165.08,164.97,20.0]
[1729527360663,23.776884,165.07,164.95,20.0]
[1729527362875,23.776884,165.07,164.94,16.0898]
[1729527363052,23.776884,165.05,164.94,16.0898]
[1729527363259,23.776884,165.07,164.94,16.0898]
[1729527364273,23.776884,165.07,164.96,20.0]
[1729527365153,23.776884,165.07,164.95,20.0]
[1729527367475,23.776884,165.05,164.95,20.0]
[1729527368173,29.835684,165.05,164.95,20.0]
[1729527368864,23.776884,165.05,164.95,20.0]
[1729527374660,29.835784,165.05,164.95,20.0]
[1729527375171,23.776884,165.05,164.95,20.0]
[1729527375358,29.835684,165.05,164.95,20.0]
[1729527375559,30.083584,165.02,164.91,20.0]
[1729527375886,30.083584,165.02,164.9,16.3319]
[1729527376060,23.776884,165.0,164.88,9.60507452]
[1729527376386,23.776884,165.0,164.88,6.5237]
[1729527376685,23.776884,165.0,164.86,16.3319]
[1729527376905,6.0617,164.97,164.86,19.40563074]
[1729527377065,23.776884,164.96,164.86,16.3319]
[1729527378280,23.776884,164.96,164.87,20.0]
[1729527379658,6.3067,164.97,164.87,20.0]
[1729527379982,6.3067,164.97,164.87,28.42329534]
[1729527380186,15.8656,164.99,164.87,28.42329534]
[1729527381258,15.8656,164.99,164.87,20.0]
[1729527382286,23.776884,164.98,164.87,20.0]
[1729527382488,29.838284,164.98,164.87,20.0]
[1729527382798,29.839084,164.96,164.85,20.0]
[1729527382985,29.839084,164.96,164.84,6.5237]
[1729527383164,12.156,164.95,164.84,6.5237]
[1729527383370,23.776884,164.94,164.84,6.5237]
[1729527383568,29.839884,164.94,164.82,15.2757]
[1729527383767,23.776884,164.92,164.82,15.2757]
[1729527384070,23.776884,164.92,164.78,0.1]
[1729527384071,23.776884,164.92,164.78,16.2558]
[1729527384279,23.776884,164.89,164.78,16.2558]
[1729527384493,23.776884,164.87,164.75,14.79329534]
[1729527384671,23.776884,164.87,164.75,6.37]
[1729527384876,30.0,164.86,164.75,6.37]
[1729527385176,16.2646,164.85,164.74,16.2558]
[1729527385593,23.776884,164.84,164.74,16.2558]
[1729527386585,23.776884,164.84,164.7,7.5244076]
[1729527387169,30.0,164.83,164.71,8.52329534]
[1729527387772,30.0,164.83,164.72,43.776884]
[1729527387976,30.0,164.83,164.74,23.776884]
[1729527388190,6.0936,164.88,164.76,43.776884]
[1729527389184,6.0936,164.88,164.72,7.64146075]
[1729527389185,23.776884,164.87,164.72,0.1]
[1729527389508,29.842284,164.87,164.73,20.0]
[1729527389705,23.776884,164.87,164.73,20.0]
[1729527389996,23.776884,164.83,164.7,7.4244076]
[1729527390387,23.776884,164.84,164.7,7.4244076]
[1729527390784,30.0,164.81,164.7,7.4244076]
[1729527391505,23.776884,164.8,164.71,20.0]
[1729527391695,23.776884,164.8,164.7,20.0]
[1729527391911,30.0,164.79,164.7,20.0]
[1729527392690,23.776884,164.78,164.66,7.35605096]
[1729527393408,23.776884,164.78,164.66,6.3012]
[1729527393707,29.845784,164.78,164.65,16.2459]
[1729527393902,23.776884,164.76,164.65,16.2459]
[1729527394787,23.776884,164.74,164.65,16.2459]
[1729527395201,30.0,164.75,164.66,28.42329534]
[1729527395505,30.0,164.75,164.66,20.0]
[1729527395904,30.0,164.73,164.66,20.0]
[1729527398098,23.776884,164.79,164.66,20.0]
[1729527399092,6.6097,164.8,164.68,20.0]
[1729527399588,6.6097,164.8,164.66,20.0]
[1729527400405,23.776884,164.79,164.66,20.0]
[1729527401789,23.776884,164.79,164.67,8.42329534]
[1729527401993,23.776884,164.79,164.68,20.0]
[1729527402692,23.776884,164.79,164.66,20.0]
[1729527402898,16.5157,164.81,164.7,20.0]
[1729527403099,16.5157,164.81,164.71,8.42329534]
[1729527403303,16.5157,164.81,164.72,20.0]
[1729527404601,16.5157,164.81,164.7,20.0]
[1729527405302,23.776884,164.83,164.7,20.0]
[1729527405701,23.776884,164.83,164.74,20.0]
[1729527405901,6.3938,164.84,164.74,28.42329534]
[1729527406112,6.3938,164.84,164.74,20.0]
[1729527407797,23.776884,164.83,164.74,20.0]
[1729527408392,6.3938,164.84,164.74,20.0]
[1729527408610,6.3938,164.84,164.74,28.42329534]
[1729527409698,6.3938,164.84,164.75,8.42329534]
[1729527409900,6.3938,164.84,164.76,20.0]
[1729527410105,16.1164,164.85,164.76,28.42329534]
[1729527410510,6.0264,164.88,164.77,29.933884]
[1729527410718,6.0264,164.88,164.78,20.0]
[1729527411221,12.0915,164.88,164.74,20.0]
[1729527411402,6.0654,164.87,164.74,20.0]
[1729527411717,23.776884,164.86,164.74,20.0]
[1729527412425,6.0264,164.88,164.74,20.0]
[1729527412426,23.776884,164.87,164.74,20.0]
[1729527421117,23.776884,164.85,164.71,2.97063226]
[1729527421321,23.776884,164.83,164.69,15.5399]
[1729527422312,6.1704,164.82,164.69,15.5399]
[1729527422507,23.776884,164.81,164.69,15.5399]
[1729527422703,23.776884,164.81,164.7,20.0]
[1729527423230,29.845384,164.79,164.65,21.87011257]
[1729527423430,23.776884,164.79,164.65,21.87011257]
[1729527423807,23.776884,164.77,164.65,21.87011257]
[1729527424514,23.776884,164.77,164.65,24.85151113]
[1729527424712,23.776884,164.77,164.66,20.0]
[1729527424929,30.0,164.76,164.66,28.42329534]
[1729527425825,30.0,164.76,164.66,20.0]
[1729527426134,30.0,164.76,164.65,15.5399]
[1729527426314,6.1704,164.75,164.65,15.5399]
[1729527426523,23.776884,164.72,164.6,6.32614762]
[1729527426827,29.848584,164.7,164.59,15.5399]
[1729527427025,29.848584,164.7,164.57,6.0862]
[1729527427233,6.072,164.69,164.57,6.0862]
[1729527427412,23.776884,164.68,164.57,6.0862]
[1729527427612,36.1704,164.67,164.55,15.5399]
[1729527428023,23.776884,164.66,164.55,15.5399]
[1729527428222,39.468784,164.66,164.55,15.5399]
[1729527428620,30.0,164.65,164.53,7.14159065]
[1729527428831,23.776884,164.64,164.53,6.0862]
[1729527429811,23.776884,164.62,164.52,20.614464]
[1729527430029,23.776884,164.62,164.52,0.614464]
[1729527430329,23.776884,164.6,164.52,0.614464]
[1729527430824,30.0,164.59,164.52,0.614464]
[1729527431211,23.776884,164.58,164.52,0.614464]
[1729527431436,40.233384,164.58,164.52,0.614464]
[1729527431816,30.0,164.57,164.52,0.614464]
[1729527432136,23.776884,164.56,164.52,0.614464]
[1729527432644,29.853984,164.56,164.52,0.614464]
[1729527432828,23.776884,164.54,164.52,0.614464]
[1729527433148,36.257984,164.53,164.52,0.614464]
[1729527433318,23.776884,164.49,164.38,6.09]
[1729527433513,23.776884,164.47,164.36,6.32849117]
[1729527433828,23.776884,164.47,164.35,17.153564]
[1729527434034,23.776884,164.47,164.35,18.21000951]
[1729527434827,23.776884,164.47,164.36,23.776884]
[1729527435051,30.0,164.46,164.37,20.0]
[1729527437839,30.0,164.46,164.36,20.0]
[1729527441133,23.776884,164.45,164.36,20.0]
[1729527441337,30.0,164.44,164.36,20.0]
[1729527441522,23.776884,164.43,164.35,0.614464]
[1729527442125,40.097484,164.43,164.35,0.614464]
[1729527442328,46.179384,164.43,164.35,0.614464]
[1729527442530,23.776884,164.41,164.35,0.614464]
[1729527443528,30.0,164.4,164.35,0.614464]
[1729527445234,16.3206,164.43,164.35,0.614464]
[1729527445851,6.5763,164.45,164.35,0.614464]
[1729527447828,15.4784,164.47,164.37,20.0]
[1729527450041,23.776884,164.46,164.35,0.614464]
[1729527450838,15.4784,164.47,164.37,20.0]
[1729527451052,6.3004,164.49,164.39,20.0]
[1729527451455,6.3004,164.49,164.41,20.0]
[1729527451653,16.6307,164.51,164.41,20.0]
[1729527452035,16.6307,164.51,164.38,20.0]
[1729527452236,6.0791,164.5,164.4,20.0]
[1729527452541,16.6307,164.51,164.4,20.0]
[1729527452746,22.7094,164.51,164.38,20.0]
[1729527452947,16.6307,164.51,164.38,20.0]
[1729527453331,23.776884,164.5,164.38,20.0]
[1729527453729,23.776884,164.5,164.4,20.0]
[1729527454153,16.6307,164.51,164.4,20.0]
[1729527454344,16.6307,164.51,164.42,20.0]
[1729527455029,16.6307,164.51,164.4,20.0]
[1729527455355,16.6307,164.51,164.42,20.0]
[1729527457757,23.776884,164.5,164.38,20.0]
[1729527457943,29.855984,164.5,164.38,20.0]
[1729527458251,29.855984,164.5,164.37,15.9894]
[1729527458954,23.776884,164.5,164.37,15.9894]
[1729527459152,16.6307,164.51,164.38,23.776884]
[1729527459659,16.6307,164.51,164.41,20.0]
[1729527461457,16.6307,164.51,164.39,20.0]
[1729527461759,23.776884,164.5,164.38,20.0]
[1729527461948,23.776884,164.46,164.35,0.614464]
[1729527462137,6.0812,164.44,164.35,0.614464]
[1729527462339,30.0,164.42,164.35,0.614464]
[1729527463258,23.776884,164.41,164.35,0.614464]
[1729527463464,30.0,164.4,164.35,0.614464]
[1729527467763,36.0827,164.4,164.35,0.614464]
[1729527467968,30.0,164.4,164.35,0.614464]
[1729527470151,21.8978,164.39,164.35,0.614464]
[1729527470455,30.0,164.38,164.35,0.614464]
[1729527471253,23.776884,164.37,164.35,0.614464]
[1729527471571,30.0,164.36,164.35,0.614464]
[1729527474171,23.776884,164.44,164.35,0.614464]
[1729527474355,22.6206,164.47,164.35,0.614464]
[1729527474671,6.0808,164.46,164.35,0.614464]
[1729527474846,6.0812,164.44,164.35,0.614464]
[1729527475972,23.776884,164.43,164.35,0.614464]
[1729527477078,23.776884,164.44,164.35,0.614464]
[1729527479662,29.858084,164.44,164.35,0.614464]
[1729527480482,6.0819,164.42,164.35,0.614464]
[1729527480772,29.859184,164.42,164.35,0.614464]
[1729527482573,23.776884,164.4,164.35,0.614464]
[1729527483875,30.0,164.36,164.35,0.614464]
[1729527484762,53.776884,164.36,164.35,0.614464]
[1729527489094,30.0,164.36,164.35,0.614464]
[1729527489376,22.7384,164.41,164.35,0.244464]
[1729527490168,21.7622,164.45,164.35,0.244464]
[1729527490367,27.8431,164.45,164.35,0.244464]
[1729527491076,21.7622,164.45,164.35,0.244464]
[1729527492372,23.776884,164.44,164.35,0.244464]
[1729527495994,21.7622,164.45,164.35,0.244464]
[1729527496174,21.4167,164.49,164.36,20.0]
[1729527496793,21.4167,164.49,164.39,20.0]
[1729527497009,15.0859,164.49,164.39,20.0]
[1729527497196,15.6997,164.53,164.41,43.776884]
[1729527497487,6.5555,164.57,164.41,43.776884]
[1729527497488,22.2552,164.57,164.41,43.776884]
[1729527497667,28.3316,164.57,164.41,43.776884]
[1729527498871,23.776884,164.56,164.41,43.776884]
[1729527499686,23.776884,164.56,164.43,43.776884]
[1729527500075,22.2552,164.57,164.43,43.776884]
[1729527501001,28.3316,164.57,164.43,20.0]
[1729527501296,23.776884,164.55,164.43,20.0]
[1729527502202,23.776884,164.56,164.43,20.0]
[1729527503786,23.776884,164.53,164.43,20.0]
[1729527505093,23.776884,164.54,164.43,20.0]